fUSD/lending_fUSD_20240813
["ID","MTS","AMOUNT","RATE_DAILY","PERIOD"]
[334762468,1723537846366,-500.0,0.00014273,2]
[334762470,1723537846378,-500.0,0.00014273,2]
[334762472,1723537846388,-500.0,0.00014273,2]
[334762474,1723537846397,-500.0,0.00014273,2]
[334762476,1723537846407,-500.0,0.00014273,2]
[334762478,1723537846416,-506.97889228,0.00014273,2]
[334762480,1723537846426,-500.0,0.00014273,2]
[334762482,1723537846435,-500.0,0.00014273,2]
[334762484,1723537846444,-500.0,0.00014273,2]
[334762486,1723537846453,-500.0,0.00014273,2]
[334762488,1723537846462,-500.0,0.00014273,2]
[334762490,1723537846472,-500.0,0.00014273,2]
[334762492,1723537846481,-152.95118481,0.00014273,2]
[334762494,1723537846491,-500.0,0.00014273,2]
[334762496,1723537846499,-502.11359513,0.00014273,2]
[334762498,1723537846509,-500.0,0.00014273,2]
[334762500,1723537846518,-500.0,0.00014273,2]
[334762502,1723537846527,-500.0,0.00014273,2]
[334762504,1723537846536,-475.34649318,0.00014273,2]
[334762506,1723537846546,-500.0,0.00014273,2]
[334762508,1723537846555,-500.0,0.00014273,2]
[334762509,1723537846566,-500.0,0.00014273,2]
[334762511,1723537846575,-500.0,0.00014274,2]
[334762513,1723537846584,-500.0,0.00014274,2]
[334762515,1723537846593,-322.59990951,0.00014274,2]
[334762517,1723537846602,-500.0,0.00014274,2]
[334762519,1723537846611,-502.19389601,0.00014274,2]
[334762521,1723537846620,-500.0,0.00014274,2]
[334762523,1723537846629,-511.46694653,0.00014274,2]
[334762525,1723537846638,-500.0,0.00014274,2]
[334762527,1723537846647,-552.28931464,0.00014274,2]
[334762529,1723537846657,-510.02238548,0.00014274,2]
[334762531,1723537846666,-506.82665951,0.00014274,2]
[334762533,1723537846675,-407.50179228,0.00014274,2]
[334762535,1723537846684,-619.14700076,0.00014275,2]
[334762537,1723537846693,-503.10458544,0.00014275,2]
[334762539,1723537846703,-500.0,0.00014275,2]
[334762541,1723537846712,-504.32782951,0.00014275,2]
[334762543,1723537846722,-500.0,0.00014275,2]
[334762545,1723537846731,-500.0,0.00014275,2]
[334762547,1723537846740,-500.0,0.00014275,2]
[334762549,1723537846750,-509.59116319,0.00014275,2]
[334762550,1723537846758,-495.96246117,0.00014275,2]
[334762552,1723537846768,-500.0,0.00014275,2]
[334762554,1723537846776,-568.39,0.00014275,2]
[334762556,1723537846786,-500.0,0.00014275,2]
[334762558,1723537846795,-500.0,0.00014275,2]
[334762560,1723537846804,-500.0,0.00014275,2]
[334762562,1723537846817,-500.0,0.00014275,2]
[334762564,1723537846826,-500.0,0.00014275,2]
[334762566,1723537846835,-500.0,0.00014275,2]
[334762568,1723537846844,-506.63170384,0.00014275,2]
[334762570,1723537846854,-500.0,0.00014275,2]
[334762572,1723537846863,-500.0,0.00014275,2]
[334762574,1723537846873,-500.0,0.00014275,2]
[334762576,1723537846883,-500.0,0.00014275,2]
[334762578,1723537846892,-500.0,0.00014275,2]
[334762580,1723537846901,-500.0,0.00014275,2]
[334762582,1723537846911,-500.0,0.00014275,2]
[334762583,1723537846921,-500.0,0.00014275,2]
[334762585,1723537846930,-150.0,0.00014275,2]
[334762587,1723537846940,-500.0,0.00014275,2]
[334762589,1723537846949,-500.0,0.00014275,2]
[334762591,1723537846959,-5000.0,0.00014275,2]
[334762593,1723537846968,-500.0,0.00014275,2]
[334762595,1723537846978,-500.0,0.00014275,2]
[334762597,1723537846987,-500.0,0.00014275,2]
[334762599,1723537846997,-500.0,0.00014275,2]
[334762601,1723537847006,-788.65,0.00014275,2]
[334762603,1723537847016,-501.11336825,0.00014275,2]
[334762605,1723537847026,-501.95729834,0.00014275,2]
[334762607,1723537847036,-500.0,0.00014275,2]
[334762609,1723537847045,-12890.7917586,0.00014298,3]
[334762611,1723537847058,-800.0,0.00014308,2]
[334762612,1723537847068,-500.0,0.00014419,2]
[334762613,1723537847077,-15212.7513429,0.000145,3]
[334762614,1723537847087,-12890.7917586,0.00014509,3]
[334762615,1723537847096,-15212.7513429,0.00014509,3]
[334762616,1723537847105,-500.0,0.00014509,2]
[334762617,1723537847115,-501.78845415,0.00014509,2]
[334762618,1723537847124,-500.0,0.00014509,2]
[334762619,1723537847133,-12890.7917586,0.0001451,3]
[334762620,1723537847142,-15212.7513429,0.0001451,3]
[334762621,1723537847152,-500.0,0.00014517,2]
[334762622,1723537847162,-500.0,0.00014517,2]
[334762623,1723537847171,-549.30881823,0.00014517,2]
[334762625,1723537847180,-1078.52,0.00014517,2]
[334762627,1723537847189,-500.0,0.00014517,2]
[334762628,1723537847198,-500.0,0.00014517,2]
[334762630,1723537847208,-500.0,0.00014517,2]
[334762632,1723537847217,-500.0,0.00014517,2]
[334762634,1723537847227,-500.0,0.00014517,2]
[334762636,1723537847236,-500.0,0.00014517,2]
[334762638,1723537847245,-500.0,0.00014517,2]
[334762640,1723537847255,-500.0,0.00014517,2]
[334762642,1723537847265,-500.0,0.00014517,2]
[334762644,1723537847274,-500.0,0.00014517,2]
[334762646,1723537847283,-500.0,0.00014517,2]
[334762648,1723537847293,-619.04,0.00014517,2]
[334762650,1723537847308,-500.0,0.00014517,2]
[334762652,1723537847317,-500.0,0.00014518,2]
[334762654,1723537847327,-500.0,0.00014518,2]
[334762656,1723537847336,-500.0,0.00014518,2]
[334762658,1723537847345,-500.0,0.00014518,2]
[334762660,1723537847355,-500.0,0.00014518,2]
[334762662,1723537847364,-500.0,0.00014518,2]
[334762664,1723537847374,-500.0,0.00014518,2]
[334762666,1723537847384,-452.88780246,0.00014518,2]
[334762668,1723537847393,-500.0,0.00014518,2]
[334762670,1723537847402,-500.0,0.00014518,2]
[334762672,1723537847412,-500.0,0.00014518,2]
[334762674,1723537847421,-500.0,0.00014518,2]
[334762676,1723537847431,-1425.34,0.00014518,2]
[334762678,1723537847440,-500.0,0.00014518,2]
[334762679,1723537847449,-500.0,0.00014519,2]
[334762681,1723537847458,-20000.0,0.00014519,2]
[334762683,1723537847467,-500.0,0.00014519,2]
[334762685,1723537847476,-500.0,0.00014519,2]
[334762687,1723537847485,-500.0,0.00014519,2]
[334762689,1723537847493,-500.0,0.00014519,2]
[334762691,1723537847502,-229.18391531,0.00014519,2]
[334762693,1723537847511,-435.78716904,0.00014519,2]
[334762695,1723537847519,-500.0,0.00014519,2]
[334762697,1723537847529,-500.0,0.00014519,2]
[334762698,1723537847537,-500.0,0.00014519,2]
[334762700,1723537847547,-500.0,0.00014519,2]
[334762702,1723537847557,-500.0,0.00014519,2]
[334762704,1723537847567,-546.87495268,0.00014519,2]
[334762706,1723537847576,-500.0,0.00014519,2]
[334762708,1723537847585,-542.40568226,0.00014519,2]
[334762710,1723537847594,-500.0,0.00014519,2]
[334762712,1723537847603,-500.0,0.00014519,2]
[334762714,1723537847612,-281.08938435,0.00014519,2]
[334762716,1723537847621,-311.28931112,0.00014519,2]
[334762717,1723537847630,-500.0,0.00014519,2]
[334762719,1723537847640,-500.0,0.00014519,2]
[334762721,1723537847650,-500.0,0.00014519,2]
[334762723,1723537847660,-500.0,0.00014519,2]
[334762725,1723537847669,-500.0,0.00014519,2]
[334762727,1723537847679,-500.0,0.00014519,2]
[334762729,1723537847687,-500.0,0.00014519,2]
[334762731,1723537847696,-500.0,0.00014519,2]
[334762732,1723537847705,-504.76295149,0.0001452,2]
[334762734,1723537847714,-500.0,0.0001452,2]
[334762736,1723537847723,-500.72134539,0.0001452,2]
[334762738,1723537847732,-500.0,0.0001452,2]
[334762740,1723537847742,-500.76059399,0.0001452,2]
[334762742,1723537847751,-649.9768514,0.0001452,2]
[334762743,1723537847761,-502.98219683,0.0001452,2]
[334762745,1723537847771,-500.72362761,0.0001452,2]
[334762747,1723537847780,-496.59728672,0.0001452,2]
[334762749,1723537847789,-300.0,0.0001452,2]
[334762751,1723537847799,-500.0,0.0001452,2]
[334762753,1723537847810,-500.0,0.0001452,2]
[334762755,1723537847828,-208.83191032,0.0001452,2]
[334762757,1723537847838,-502.75644757,0.0001452,2]
[334762759,1723537847847,-501.07965549,0.0001452,2]
[334762761,1723537847856,-505.98706061,0.0001452,2]
[334762763,1723537847867,-384.95235195,0.0001452,2]
[334762765,1723537847876,-508.28048128,0.0001452,2]
[334762767,1723537847886,-509.3526616,0.0001452,2]
[334762769,1723537847895,-498.2408691,0.0001452,2]
[334762771,1723537847904,-506.25800069,0.0001452,2]
[334762773,1723537847914,-507.93376389,0.0001452,2]
[334762775,1723537847923,-504.7363358,0.0001452,2]
[334762777,1723537847932,-506.34458347,0.0001452,2]
[334762779,1723537847941,-504.38827461,0.0001452,2]
[334762781,1723537847951,-506.00631004,0.0001452,2]
[334762783,1723537847960,-502.56112342,0.0001452,2]
[334762785,1723537847969,-498.56763367,0.0001452,2]
[334762787,1723537847979,-509.52578505,0.0001452,2]
[334762789,1723537847987,-507.85594298,0.0001452,2]
[334762791,1723537847996,-506.43366311,0.0001452,2]
[334762793,1723537848005,-500.0,0.0001452,2]
[334762795,1723537848015,-500.0,0.0001452,2]
[334762797,1723537848024,-618.05848885,0.0001452,2]
[334762799,1723537848033,-500.0,0.0001452,2]
[334762801,1723537848042,-500.0,0.0001452,2]
[334762803,1723537848051,-12890.7917586,0.00014537,3]
[334762804,1723537848061,-15212.7513429,0.00014537,3]
[334762806,1723537848070,-12890.7917586,0.00014539,3]
[334762808,1723537848080,-15212.7513429,0.00014539,3]
[334762810,1723537848089,-500.0,0.00014547,2]
[334762812,1723537848098,-513.74628774,0.00014547,2]
[334762814,1723537848107,-154.83136191,0.00014547,2]
[334762816,1723537848116,-500.0,0.00014547,2]
[334762818,1723537848125,-442.63826273,0.00014547,2]
[334762820,1723537848134,-500.0,0.00014547,2]
[334762822,1723537848143,-500.0,0.00014547,2]
[334762824,1723537848152,-485.30680192,0.00014547,2]
[334762826,1723537848161,-500.0,0.00014547,2]
[334762827,1723537848170,-271.4606256,0.00014547,2]
[334762830,1723537848180,-519.49443864,0.00014547,2]
[334762831,1723537848189,-500.0,0.00014547,2]
[334762834,1723537848198,-500.0,0.00014547,2]
[334762836,1723537848208,-500.0,0.00014547,2]
[334762838,1723537848218,-500.0,0.00014547,2]
[334762840,1723537848227,-500.0,0.00014547,2]
[334762842,1723537848237,-540.45109828,0.00014547,2]
[334762844,1723537848246,-313.36412509,0.00014547,2]
[334762846,1723537848256,-500.0,0.00014547,2]
[334762848,1723537848266,-500.0,0.00014547,2]
[334762850,1723537848275,-500.0,0.00014547,2]
[334762852,1723537848284,-333.48770313,0.00014547,2]
[334762854,1723537848297,-500.0,0.00014547,2]
[334762855,1723537848308,-520.24,0.00014547,2]
[334762857,1723537848317,-290.84879402,0.00014547,2]
[334762859,1723537848327,-590.5695694,0.00014547,2]
[334762861,1723537848336,-500.0,0.00014547,2]
[334762863,1723537848346,-500.0,0.00014547,2]
[334762865,1723537848356,-279.95476697,0.00014547,2]
[334762867,1723537848365,-500.0,0.00014547,2]
[334762869,1723537848376,-544.83235539,0.00014547,2]
[334762871,1723537848386,-301.1987573,0.00014547,2]
[334762873,1723537848396,-500.0,0.00014547,2]
[334762876,1723537848407,-500.0,0.00014547,2]
[334762878,1723537848417,-500.0,0.00014547,2]
[334762880,1723537848426,-500.0,0.00014547,2]
[334762882,1723537848436,-341.46400617,0.00014547,2]
[334762884,1723537848445,-205.66158145,0.00014547,2]
[334762886,1723537848454,-498.32905049,0.00014547,2]
[334762888,1723537848464,-500.0,0.00014547,2]
[334762890,1723537848474,-509.1104848,0.00014547,2]
[334762892,1723537848483,-498.91944478,0.00014547,2]
[334762893,1723537848493,-504.62178333,0.00014547,2]
[334762895,1723537848502,-506.98904733,0.00014547,2]
[334762897,1723537848512,-228.3273987,0.00014547,2]
[334762899,1723537848522,-500.0,0.00014547,2]
[334762901,1723537848532,-500.0,0.00014547,2]
[334762903,1723537848542,-503.34588857,0.00014547,2]
[334762905,1723537848553,-591.75919317,0.00014547,2]
[334762907,1723537848564,-499.20299905,0.00014547,2]
[334762909,1723537848574,-500.0,0.00014547,2]
[334762911,1723537848584,-201.51224257,0.00014547,2]
[334762913,1723537848594,-502.69140963,0.00014547,2]
[334762915,1723537848604,-293.24418664,0.00014547,2]
[334762917,1723537848614,-500.0,0.00014548,2]
[334762919,1723537848624,-500.0,0.00014548,2]
[334762921,1723537848634,-465.55240589,0.00014548,2]
[334762923,1723537848643,-500.0,0.00014548,2]
[334762925,1723537848652,-500.0,0.00014548,2]
[334762927,1723537848661,-227.76,0.00014549,2]
[334762929,1723537848671,-500.0,0.00014549,2]
[334762931,1723537848679,-500.0,0.00014549,2]
[334762933,1723537848688,-500.0,0.00014549,2]
[334762935,1723537848698,-506.98376698,0.00014549,2]
[334762937,1723537848708,-568.39,0.00014549,2]
[334762939,1723537848718,-502.83476393,0.00014549,2]
[334762941,1723537848728,-500.0,0.00014549,2]
[334762943,1723537848739,-500.0,0.00014549,2]
[334762945,1723537848750,-500.0,0.00014549,2]
[334762947,1723537848760,-523.07888708,0.00014549,2]
[334762949,1723537848770,-500.0,0.00014549,2]
[334762951,1723537848780,-510.74315006,0.00014549,2]
[334762953,1723537848790,-500.0,0.00014549,2]
[334762955,1723537848801,-500.0,0.00014549,2]
[334762957,1723537848815,-500.0,0.00014549,2]
[334762959,1723537848825,-500.0,0.00014549,2]
[334762961,1723537848835,-500.0,0.00014549,2]
[334762963,1723537848845,-500.0,0.00014549,2]
[334762965,1723537848855,-500.0,0.00014549,2]
[334762967,1723537848865,-150.0,0.00014549,2]
[334762969,1723537848875,-500.0,0.00014549,2]
[334762971,1723537848885,-500.0,0.00014549,2]
[334762973,1723537848895,-5000.0,0.00014549,2]
[334762975,1723537848906,-500.0,0.00014549,2]
[334762977,1723537848916,-500.0,0.00014549,2]
[334762979,1723537848926,-513.67296992,0.00014549,2]
[334762981,1723537848936,-500.0,0.00014549,2]
[334762983,1723537848946,-788.65,0.00014549,2]
[334762986,1723537848956,-379.82855824,0.00014549,2]
[334762988,1723537848966,-15212.7513429,0.0001468,3]
[334762990,1723537848976,-38672.3752757,0.0001469,3]
[334762992,1723537848986,-30425.5026858,0.0001469,3]
[334762994,1723537848995,-79354.70512202,0.000147,4]
[334762996,1723537849005,-250.0,0.000147,2]
[334762998,1723537849016,-250.0,0.000147,2]
[334763000,1723537849026,-250.0,0.000147,2]
[334763002,1723537849036,-250.0,0.000147,2]
[334763004,1723537849046,-250.0,0.000147,2]
[334763006,1723537849057,-250.0,0.000147,2]
[334763008,1723537849071,-355.2,0.000147,2]
[334763010,1723537849082,-15212.7513429,0.00014773,3]
[334763012,1723537849092,-12890.7917586,0.00014783,3]
[334763014,1723537849101,-15212.7513429,0.00014783,3]
[334763016,1723537849111,-500.0,0.00014783,2]
[334763018,1723537849122,-500.0,0.00014783,2]
[334763020,1723537849131,-500.0,0.00014791,2]
[334763022,1723537849141,-500.0,0.00014791,2]
[334763024,1723537849150,-1078.52,0.00014791,2]
[334763026,1723537849160,-500.0,0.00014791,2]
[334763028,1723537849170,-500.0,0.00014791,2]
[334763030,1723537849179,-627.96881571,0.00014791,2]
[334763032,1723537849189,-500.0,0.00014791,2]
[334763034,1723537849199,-500.0,0.00014791,2]
[334763036,1723537849208,-500.0,0.00014791,2]
[334763038,1723537849218,-184.82804157,0.00014791,2]
[334763040,1723537849228,-633.38255731,0.00014791,2]
[334763042,1723537849237,-500.0,0.00014791,2]
[334763044,1723537849247,-261.7339989,0.00014791,2]
[334763046,1723537849257,-567.91822652,0.00014791,2]
[334763048,1723537849267,-619.04,0.00014791,2]
[334763050,1723537849276,-500.0,0.00014791,2]
[334763052,1723537849286,-597.71601772,0.00014792,2]
[334763054,1723537849297,-500.0,0.00014792,2]
[334763056,1723537849309,-500.0,0.00014792,2]
[334763057,1723537849318,-500.0,0.00014792,2]
[334763060,1723537849328,-500.0,0.00014792,2]
[334763062,1723537849339,-500.0,0.00014792,2]
[334763064,1723537849349,-500.0,0.00014792,2]
[334763066,1723537849359,-495.3047016,0.00014792,2]
[334763068,1723537849369,-500.0,0.00014792,2]
[334763070,1723537849380,-500.0,0.00014792,2]
[334763072,1723537849390,-525.36871963,0.00014792,2]
[334763074,1723537849400,-1425.34,0.00014792,2]
[334763076,1723537849410,-500.0,0.00014792,2]
[334763078,1723537849419,-500.0,0.00014792,2]
[334763080,1723537849429,-500.0,0.00014793,2]
[334763082,1723537849438,-20000.0,0.00014793,2]
[334763084,1723537849448,-500.0,0.00014793,2]
[334763086,1723537849457,-500.0,0.00014793,2]
[334763088,1723537849467,-500.0,0.00014793,2]
[334763090,1723537849476,-168.01824212,0.00014793,2]
[334763092,1723537849486,-500.0,0.00014793,2]
[334763094,1723537849495,-500.0,0.00014793,2]
[334763096,1723537849505,-500.0,0.00014793,2]
[334763098,1723537849515,-500.0,0.00014793,2]
[334763100,1723537849525,-500.0,0.00014793,2]
[334763102,1723537849536,-500.0,0.00014793,2]
[334763104,1723537849546,-500.0,0.00014793,2]
[334763106,1723537849555,-500.0,0.00014793,2]
[334763108,1723537849567,-500.0,0.00014793,2]
[334763110,1723537849576,-500.0,0.00014793,2]
[334763112,1723537849586,-500.0,0.00014793,2]
[334763114,1723537849596,-500.0,0.00014793,2]
[334763116,1723537849605,-500.0,0.00014793,2]
[334763118,1723537849616,-500.0,0.00014793,2]
[334763120,1723537849626,-500.0,0.00014793,2]
[334763121,1723537849636,-500.0,0.00014793,2]
[334763122,1723537849645,-498.47386663,0.00014794,2]
[334763123,1723537849655,-500.0,0.00014794,2]
[334763125,1723537849664,-300.0,0.00014794,2]
[334763127,1723537849674,-480.69842665,0.00014794,2]
[334763128,1723537849684,-508.83311008,0.00014794,2]
[334763130,1723537849693,-500.0,0.00014794,2]
[334763132,1723537849703,-500.0,0.00014794,2]
[334763134,1723537849712,-500.0,0.00014794,2]
[334763137,1723537849722,-500.0,0.00014794,2]
[334763139,1723537849732,-15212.7513429,0.00014801,3]
[334763141,1723537849742,-360.0,0.00014803,2]
[334763143,1723537849752,-12890.7917586,0.00014811,3]
[334763145,1723537849761,-15212.7513429,0.00014813,3]
[334763147,1723537849771,-500.0,0.00014821,2]
[334763149,1723537849781,-500.0,0.00014821,2]
[334763151,1723537849791,-500.0,0.00014821,2]
[334763153,1723537849801,-236.87920512,0.00014821,2]
[334763155,1723537849813,-477.40823932,0.00014821,2]
[334763157,1723537849829,-500.0,0.00014821,2]
[334763159,1723537849840,-500.0,0.00014821,2]
[334763161,1723537849850,-500.0,0.00014821,2]
[334763163,1723537849860,-150.31980274,0.00014821,2]
[334763165,1723537849870,-500.0,0.00014821,2]
[334763167,1723537849880,-500.0,0.00014821,2]
[334763169,1723537849890,-500.0,0.00014821,2]
[334763172,1723537849900,-635.8401902,0.00014821,2]
[334763173,1723537849910,-475.26201975,0.00014821,2]
[334763176,1723537849920,-520.24,0.00014821,2]
[334763178,1723537849930,-367.98486529,0.00014821,2]
[334763180,1723537849940,-500.0,0.00014821,2]
[334763182,1723537849950,-500.0,0.00014821,2]
[334763184,1723537849960,-527.62308891,0.00014821,2]
[334763186,1723537849971,-500.0,0.00014821,2]
[334763188,1723537849981,-500.0,0.00014821,2]
[334763190,1723537849991,-500.0,0.00014821,2]
[334763192,1723537850001,-163.92564344,0.00014821,2]
[334763194,1723537850011,-509.17106359,0.00014821,2]
[334763196,1723537850022,-500.0,0.00014821,2]
[334763198,1723537850031,-499.20921331,0.00014821,2]
[334763200,1723537850041,-500.0,0.00014822,2]
[334763202,1723537850052,-500.0,0.00014822,2]
[334763204,1723537850064,-500.0,0.00014822,2]
[334763206,1723537850074,-500.0,0.00014822,2]
[334763208,1723537850084,-500.0,0.00014823,2]
[334763210,1723537850094,-500.0,0.00014823,2]
[334763212,1723537850104,-568.39,0.00014823,2]
[334763214,1723537850113,-500.0,0.00014823,2]
[334763216,1723537850123,-500.0,0.00014823,2]
[334763218,1723537850133,-500.0,0.00014823,2]
[334763220,1723537850143,-500.0,0.00014823,2]
[334763222,1723537850153,-500.0,0.00014823,2]
[334763224,1723537850163,-500.0,0.00014823,2]
[334763226,1723537850173,-475.20137837,0.00014823,2]
[334763229,1723537850183,-500.0,0.00014823,2]
[334763231,1723537850192,-500.0,0.00014823,2]
[334763233,1723537850202,-500.0,0.00014823,2]
[334763235,1723537850212,-500.0,0.00014823,2]
[334763237,1723537850222,-150.0,0.00014823,2]
[334763239,1723537850232,-504.09227097,0.00014823,2]
[334763241,1723537850242,-623.56615938,0.00014823,2]
[334763243,1723537850252,-1018.22063266,0.00014823,2]
[334763245,1723537850262,-500.0,0.00014823,2]
[334763247,1723537850271,-500.0,0.00014823,2]
[334763249,1723537850281,-500.0,0.00014823,2]
[334763251,1723537850292,-788.65,0.00014823,2]
[334763253,1723537850304,-420.0,0.00014869,2]
[334763255,1723537850316,-500.0,0.000149,5]
[334763257,1723537850326,-1000.28,0.00015,2]
[334763259,1723537850337,-3162.10595045,0.00015,3]
[334763261,1723537850347,-343.73104868,0.00015023,2]
[334763263,1723537850358,-12890.7917586,0.00015056,3]
[334763265,1723537850368,-500.0,0.00015057,2]
[334763267,1723537850378,-451.89524813,0.00015057,2]
[334763269,1723537850388,-15212.7513429,0.00015057,3]
[334763271,1723537850398,-159.65990281,0.00015065,2]
[334763272,1723537850408,-623.92975992,0.00015065,2]
[334763275,1723537850419,-1078.52,0.00015065,2]
[334763277,1723537850429,-500.0,0.00015065,2]
[334763279,1723537850439,-500.0,0.00015065,2]
[334763281,1723537850450,-500.0,0.00015065,2]
[334763302,1723537850460,-500.0,0.00015065,2]
[334763306,1723537850675,-500.0,0.00015065,2]
[334763308,1723537850685,-312.43784454,0.00015065,2]
[334763310,1723537850696,-619.04,0.00015065,2]
[334763312,1723537850705,-533.05979755,0.00015065,2]
[334763314,1723537850715,-203.94345048,0.00015066,2]
[334763316,1723537850724,-305.89935849,0.00015066,2]
[334763318,1723537850733,-500.0,0.00015066,2]
[334763319,1723537850743,-500.0,0.00015066,2]
[334763322,1723537850752,-500.0,0.00015066,2]
[334763324,1723537850762,-500.0,0.00015066,2]
[334763325,1723537850771,-500.0,0.00015066,2]
[334763328,1723537850782,-500.0,0.00015066,2]
[334763330,1723537850792,-1425.34,0.00015066,2]
[334763332,1723537850802,-500.0,0.00015066,2]
[334763334,1723537850815,-500.0,0.00015067,2]
[334763336,1723537850824,-500.0,0.00015067,2]
[334763338,1723537850834,-500.0,0.00015067,2]
[334763340,1723537850844,-500.0,0.00015067,2]
[334763342,1723537850854,-500.0,0.00015067,2]
[334763344,1723537850864,-500.0,0.00015067,2]
[334763346,1723537850874,-500.0,0.00015067,2]
[334763348,1723537850884,-500.0,0.00015067,2]
[334763350,1723537850894,-500.0,0.00015067,2]
[334763352,1723537850903,-236.59179537,0.00015067,2]
[334763353,1723537850913,-500.0,0.00015067,2]
[334763355,1723537850922,-500.0,0.00015067,2]
[334763357,1723537850932,-500.0,0.00015067,2]
[334763359,1723537850942,-500.0,0.00015067,2]
[334763361,1723537850951,-500.0,0.00015067,2]
[334763363,1723537850961,-500.0,0.00015067,2]
[334763365,1723537850971,-357.90529253,0.00015067,2]
[334763367,1723537850980,-500.0,0.00015067,2]
[334763369,1723537850990,-500.0,0.00015067,2]
[334763371,1723537850999,-500.0,0.00015067,2]
[334763373,1723537851009,-500.0,0.00015068,2]
[334763375,1723537851019,-301.13283663,0.00015068,2]
[334763377,1723537851029,-515.20104127,0.00015068,2]
[334763379,1723537851038,-508.66018256,0.00015068,2]
[334763381,1723537851047,-300.0,0.00015068,2]
[334763383,1723537851058,-12890.7917586,0.00015087,3]
[334763385,1723537851067,-15212.7513429,0.00015087,3]
[334763387,1723537851077,-564.4,0.00015095,2]
[334763389,1723537851086,-500.0,0.00015095,2]
[334763391,1723537851096,-500.0,0.00015095,2]
[334763393,1723537851105,-500.0,0.00015095,2]
[334763395,1723537851115,-500.0,0.00015095,2]
[334763397,1723537851124,-479.94942348,0.00015095,2]
[334763399,1723537851133,-500.0,0.00015095,2]
[334763401,1723537851142,-500.0,0.00015095,2]
[334763403,1723537851151,-406.14674808,0.00015095,2]
[334763404,1723537851161,-520.24,0.00015095,2]
[334763406,1723537851170,-500.0,0.00015095,2]
[334763408,1723537851179,-500.0,0.00015095,2]
[334763410,1723537851188,-500.0,0.00015095,2]
[334763412,1723537851197,-504.69984539,0.00015095,2]
[334763414,1723537851206,-500.0,0.00015095,2]
[334763416,1723537851216,-499.05156045,0.00015095,2]
[334763418,1723537851225,-500.0,0.00015096,2]
[334763420,1723537851234,-500.0,0.00015096,2]
[334763422,1723537851244,-500.0,0.00015096,2]
[334763424,1723537851253,-500.0,0.00015096,2]
[334763426,1723537851263,-500.0,0.00015097,2]
[334763428,1723537851272,-500.0,0.00015097,2]
[334763430,1723537851281,-568.39,0.00015097,2]
[334763432,1723537851291,-500.0,0.00015097,2]
[334763434,1723537851304,-500.0,0.00015097,2]
[334763436,1723537851316,-500.0,0.00015097,2]
[334763438,1723537851325,-500.0,0.00015097,2]
[334763440,1723537851335,-500.0,0.00015097,2]
[334763442,1723537851345,-500.0,0.00015097,2]
[334763444,1723537851354,-500.0,0.00015097,2]
[334763446,1723537851365,-514.88546604,0.00015097,2]
[334763448,1723537851376,-500.0,0.00015097,2]
[334763450,1723537851387,-500.0,0.00015097,2]
[334763452,1723537851397,-172.60447613,0.00015097,2]
[334763454,1723537851406,-500.0,0.00015097,2]
[334763456,1723537851416,-500.0,0.00015097,2]
[334763458,1723537851425,-513.03881894,0.00015097,2]
[334763460,1723537851435,-788.65,0.00015097,2]
[334763462,1723537851445,-5653.41196672,0.00015122,2]